Workbook

Sheet Battery Buggy B, 2018
B2: Team Name and State | E2: 1. Vehicle & material impounded | F2: 2. No lithium and/or lead acid batteries | G2: 3. # of N's under Construction | H2: Run 1 | P2: Run 2 | X2: 20. Practice logs status | Y2: 21. Bad Sportsmanship (DQ) | Z2: =MAX(Z9:Z108) -> 41 | AA2: Scoring and Ranking | AN2: Tie Breaker | AW2: Final Score | BJ2: Final Ranking
H3: 4. # of Additional N's under Constr. | I3: 5. # of N's under Competition | J3: 6. Distance to target (cm) | K3: Time | N3: 10. Center Line Bonus | O3: 11. Failed run? | P3: 12. # of Additional N's under Constr. | Q3: 13. # of N's under Competition | R3: 14. Distance to target (cm) | S3: Time | V3: 18. Center Line Bonus | W3: 19. Failed Run? | Z3: Team present? | AA3: Run 1 | AF3: Better Run | AG3: Run 2 | AL3: Better Run Tier | AM3: Better Run Score | AN3: Tie Breaker 1 | AQ3: Tie Breaker 2 | AT3: Tie Breaker 3 | AW3: Score | AX3: Tier | AY3: Tiebreaker | AZ3: Rank | BA3: Points | BJ3: Rank | BK3: Team Name
K4: 7. Timer 1 (in sec) | L4: 8. Timer 2 (in sec) | M4: 9. Timer 3 (in sec) | S4: 15. Timer 1 (in sec) | T4: 16. Timer 2 (in sec) | U4: 17. Timer 3 (in sec) | AA4: Run 1 Status | AB4: Run 1 Distance Score | AC4: Run 1 Time Score | AD4: Run 1 Penalties | AE4: Run 1 Score | AG4: Run 2 Status | AH4: Run 2 Distance Score | AI4: Run 2 Time Score | AJ4: Run 2 Penalties | AK4: Run 2 Score | AN4: Rank | AO4: Distance Score | AP4: Tie 1 Adjusted Rank | AQ4: Rank after Tie Breaker 1 | AR4: Time Score | AS4: Tie 2 Adjusted Rank | AT4: Rank after Tie Breaker 2 | AU4: Non-Scored Adjusted Run | AV4: Tie 3 Adjusted Rank | BC4: =SUM(BC9:BC108) -> 24
X6: Complete
X7: Incomplete
X8: Missing
B9: 1 | C9: Chippewa MS Maroon | G9: 0 | H9: 0 | I9: 0 | J9: 45.2 | K9: 5.5 | L9: 5.52 | M9: 5.64 | N9: n | O9: n | P9: 0 | Q9: 0 | R9: 54.1 | S9: 4.59 | T9: 5.66 | U9: 5.48 | V9: n | W9: n | X9: Complete | Z9: =IF(ISBLANK(C9),"",ROW(C9)-8) -> 1 | AA9: =IF(ISBLANK($C9),"", IF(OR(LEFT($Y9)="y",LEFT($Y9)="t",$Y9=1), "DQ", IF(AND(ISBLANK($K9), ISBLANK($L9), ISBLANK($M9), ISBLANK($J9), ISBLANK($S9), ISBLANK($T9), ISBLANK($U9), ISBLANK($R9),NOT(OR(LEFT($O9)="y",LEFT($O9)="t",$O9=1, LEFT($W9)="y",LEFT($W9)="t",$W9=1))),"NS", IF(OR(AND(ISBLANK(K9), ISBLANK(L9), ISBLANK(M9)), ISBLANK(J9),LEFT(O9)="y",LEFT($O9)="t",$O9=1,LEFT(F9)="n",LEFT(F9)="f"),"P", 1 ) ) ) ) -> 1 | AB9: =IF(ISBLANK($C9),"",IF(ISNUMBER(AA9),ROUND(J9,1)*4,AA9)) -> 180.8 | AC9: =IF(ISBLANK($C9),"",IF(ISNUMBER(AA9), 2*ROUND(MEDIAN(K9:M9),2),AA9)) -> 11.04 | AD9: =IF(ISBLANK($C9),"", IF(ISNUMBER(AA9), MIN(3,(IF(ISBLANK($G9),0,$G9)+IF(ISBLANK(H9),0,H9)))*5000+ IF(ISBLANK(I9),0,MIN(4,I9))*1000+ IF(OR(LEFT($E9)="n",LEFT($E9)="f"),10000,0)+ IF($X9="Incomplete",250,IF($X9="Missing",500,0)), AA9) ) -> 0 | AE9: =IF(ISBLANK($C9),"",IF(ISNUMBER(AA9),SUM(AB9:AD9)+IF(OR(LEFT(N9)="y",LEFT(N9)="t",N9=1),-25,0),AA9)) -> 191.84 | AF9: =IF(ISBLANK($C9),"", IF(AND(ISNUMBER(AA9),ISNUMBER(AG9)), IF(AE9=AK9,"=",IF(AE9>AK9,"->","<-")), IF(OR(AA9="DQ",AA9="NS"), IF(AA9="DQ","DQ","NS"), IF(OR(AND(AA9="P",AG9="P"),AND(AA9="P",AG9="NS"),AND(AA9="NS",AG9="P")),"P",IF(AA9="P", "->","<-")) ) ) ) -> <- | AG9: =IF(ISBLANK($C9),"", IF(OR(LEFT($Y9)="y",LEFT($Y9)="t",$Y9=1), "DQ", IF(AND(ISBLANK($K9), ISBLANK($L9), ISBLANK($M9), ISBLANK($J9), ISBLANK($S9), ISBLANK($T9), ISBLANK($U9), ISBLANK($R9),NOT(OR(LEFT($O9)="y",LEFT($O9)="t",$O9=1, LEFT($W9)="y",LEFT($W9)="t",$W9=1))),"NS", IF(OR(AND(ISBLANK(S9), ISBLANK(T9), ISBLANK(U9)), ISBLANK(R9),LEFT(W9)="y",LEFT($W9)="t",$W9=1,LEFT(F9)="n",LEFT(F9)="f"),"P", 1 ) ) ) ) -> 1 | AH9: =IF(ISBLANK($C9),"",IF(ISNUMBER(AG9),ROUND(R9,1)*4,AG9)) -> 216.4 | AI9: =IF(ISBLANK($C9),"",IF(ISNUMBER(AG9), 2*ROUND(MEDIAN(S9:U9),2),AG9)) -> 10.96 | AJ9: =IF(ISBLANK($C9),"", IF(ISNUMBER(AG9), MIN(3,(IF(ISBLANK($G9),0,$G9)+IF(ISBLANK(P9),0,P9)))*5000+ IF(ISBLANK(Q9),0,MIN(4,Q9))*1000+ IF(OR(LEFT($E9)="n",LEFT($E9)="f"),10000,0)+ IF($X9="Incomplete",250,IF($X9="Missing",500,0)), AG9) ) -> 0 | AK9: =IF(ISBLANK($C9),"",IF(ISNUMBER($AG9),SUM(AH9:AJ9)+IF(OR(LEFT(V9)="y",LEFT(V9)="t",V9=1),-25,0),AG9)) -> 227.36 | AL9: =IF(ISBLANK($C9),"",IF(OR(AF9="NS",AF9="P",AF9="DQ"),AF9,IF(AF9="<-",AA9,AG9))) -> 1 | AM9: =IF(ISBLANK($C9),"",IF(OR(AF9="NS",AF9="P",AF9="DQ"),AF9,IF(AF9="<-",AE9,AK9))) -> 191.84 | AN9: =IF(ISBLANK($C9),"",IF(ISNUMBER($AM9),RANK(AM9,OFFSET(AM$9,0,0,$Z$2),1),AM9)) -> 15 | AO9: =IF(ISBLANK($C9),"",IF(ISNUMBER($AN9),IF($AF9="=",MIN(AB9,AH9),IF($AF9="<-",AB9,AH9)),$AN9)) -> 180.8 | AP9: =IF(ISBLANK($C9),"",IF(ISNUMBER($AN9),AN9+AO9/(MAX(AO$9:AO$108,1)*2),$AN9)) -> 15.06457143 | AQ9: =IF(ISBLANK($C9),"",IF(ISNUMBER($AN9),RANK(AP9,OFFSET(AP$9,0,0,$Z$2),1),$AN9)) -> 15 | AR9: =IF(ISBLANK($C9),"",IF(ISNUMBER($AN9),IF($AF9="=",MIN(AC9,AI9),IF($AF9="<-",AC9,AI9)),$AN9)) -> 11.04 | AS9: =IF(ISBLANK($C9),"",IF(ISNUMBER($AN9),AQ9+AR9/(MAX(AR$9:AR$108,1)*2),$AN9)) -> 15.18122127 | AT9: =IF(ISBLANK($C9),"",IF(ISNUMBER($AN9),RANK(AS9,OFFSET(AS$9,0,0,$Z$2),1),$AN9)) -> 15 | AU9: =IF(ISBLANK($C9),"",IF(ISNUMBER($AN9),IF($AF9="=",MIN(AH9,AN9),IF($AF9="<-",AH9,AN9)),$AN9)) -> 216.4 | AV9: =IF(ISBLANK($C9),"",IF(ISNUMBER($AN9),AT9+IF(ISNUMBER(AU9),AU9/ABS((MAX(MAX(AU$9:AU$108,1),-MIN(AU$9:AU$108,1)))*2),0.6),$AN9)) -> 15.17796053 | AW9: =IF(ROW(C9)-8>$Z$2,"", IF(ISBLANK($C9),"NS",IF(OR(ISNUMBER($AL9),ISNUMBER($AM9)),AM9,$AL9))) -> 191.84 | AX9: =IF(ROW(C9)-8>$Z$2,"",IF(ISBLANK($C9),"NS",AL9)) -> 1 | AY9: =IF(ROW(C9)-8>$Z$2,"",IF(ISBLANK($C9),"NS",IF(ISNUMBER(AS9),AN9-AZ9,AS9))) -> 0 | AZ9: =IF(ROW(C9)-8>$Z$2,"",IF(ISBLANK($C9),"NS",IF(ISNUMBER(AV9),RANK(AV9,OFFSET($AV$9,0,0,$Z$2),1),AV9))) -> 15 | BA9: =IF(ROW(C9)-8>$Z$2,"",IF(ISNUMBER(AZ9),AZ9,IF(AZ9="P",$Z$2,IF(AZ9="NS",$Z$2+1,IF(AZ9="DQ",$Z$2+2))))) -> 15 | BC9: =IF(ISNUMBER(AZ9),1,0) -> 1 | BD9: 1 | BE9: =IF(ISBLANK($C9),"",BA9+ROW($B9)/1000) -> 15.009 | BF9: =IF(ISBLANK($C9),"",RANK(BE9,OFFSET(BE$9,0,0,$Z$2),1)) -> 15 | BG9: =IF(ISBLANK($C9),"",$C9) -> Chippewa MS Maroon | BH9: =IF(ISBLANK($C9),"",BA9) -> 15 | BI9: =AZ9 -> 15 | BJ9: =IF(BD9>BC$4,"",VLOOKUP(BD9,OFFSET(BF$9,0,0,$Z$2,4),4,FALSE)) -> 1 | BK9: =IF(BD9>BC$4,"",VLOOKUP(BD9,OFFSET(BF$9,0,0,$Z$2,4),2,FALSE)) -> Boulan Park MS Red
B10: 2 | C10: Chippewa MS Blue | G10: 0 | H10: 0 | I10: 0 | J10: 32.9 | K10: 9.21 | L10: 9.25 | M10: 9.36 | N10: n | O10: n | P10: 0 | Q10: 0 | R10: 87.2 | S10: 9.92 | T10: 10.63 | U10: 10.56 | V10: n | W10: n | X10: Complete | Z10: =IF(ISBLANK(C10),"",ROW(C10)-8) -> 2 | AA10: =IF(ISBLANK($C10),"", IF(OR(LEFT($Y10)="y",LEFT($Y10)="t",$Y10=1), "DQ", IF(AND(ISBLANK($K10), ISBLANK($L10), ISBLANK($M10), ISBLANK($J10), ISBLANK($S10), ISBLANK($T10), ISBLANK($U10), ISBLANK($R10),NOT(OR(LEFT($O10)="y",LEFT($O10)="t",$O10=1, LEFT($W10)="y",LEFT($W10)="t",$W10=1))),"NS", IF(OR(AND(ISBLANK(K10), ISBLANK(L10), ISBLANK(M10)), ISBLANK(J10),LEFT(O10)="y",LEFT($O10)="t",$O10=1,LEFT(F10)="n",LEFT(F10)="f"),"P", 1 ) ) ) ) -> 1 | AB10: =IF(ISBLANK($C10),"",IF(ISNUMBER(AA10),ROUND(J10,1)*4,AA10)) -> 131.6 | AC10: =IF(ISBLANK($C10),"",IF(ISNUMBER(AA10), 2*ROUND(MEDIAN(K10:M10),2),AA10)) -> 18.5 | AD10: =IF(ISBLANK($C10),"", IF(ISNUMBER(AA10), MIN(3,(IF(ISBLANK($G10),0,$G10)+IF(ISBLANK(H10),0,H10)))*5000+ IF(ISBLANK(I10),0,MIN(4,I10))*1000+ IF(OR(LEFT($E10)="n",LEFT($E10)="f"),10000,0)+ IF($X10="Incomplete",250,IF($X10="Missing",500,0)), AA10) ) -> 0 | AE10: =IF(ISBLANK($C10),"",IF(ISNUMBER(AA10),SUM(AB10:AD10)+IF(OR(LEFT(N10)="y",LEFT(N10)="t",N10=1),-25,0),AA10)) -> 150.1 | AF10: =IF(ISBLANK($C10),"", IF(AND(ISNUMBER(AA10),ISNUMBER(AG10)), IF(AE10=AK10,"=",IF(AE10>AK10,"->","<-")), IF(OR(AA10="DQ",AA10="NS"), IF(AA10="DQ","DQ","NS"), IF(OR(AND(AA10="P",AG10="P"),AND(AA10="P",AG10="NS"),AND(AA10="NS",AG10="P")),"P",IF(AA10="P", "->","<-")) ) ) ) -> <- | AG10: =IF(ISBLANK($C10),"", IF(OR(LEFT($Y10)="y",LEFT($Y10)="t",$Y10=1), "DQ", IF(AND(ISBLANK($K10), ISBLANK($L10), ISBLANK($M10), ISBLANK($J10), ISBLANK($S10), ISBLANK($T10), ISBLANK($U10), ISBLANK($R10),NOT(OR(LEFT($O10)="y",LEFT($O10)="t",$O10=1, LEFT($W10)="y",LEFT($W10)="t",$W10=1))),"NS", IF(OR(AND(ISBLANK(S10), ISBLANK(T10), ISBLANK(U10)), ISBLANK(R10),LEFT(W10)="y",LEFT($W10)="t",$W10=1,LEFT(F10)="n",LEFT(F10)="f"),"P", 1 ) ) ) ) -> 1 | AH10: =IF(ISBLANK($C10),"",IF(ISNUMBER(AG10),ROUND(R10,1)*4,AG10)) -> 348.8 | AI10: =IF(ISBLANK($C10),"",IF(ISNUMBER(AG10), 2*ROUND(MEDIAN(S10:U10),2),AG10)) -> 21.12 | AJ10: =IF(ISBLANK($C10),"", IF(ISNUMBER(AG10), MIN(3,(IF(ISBLANK($G10),0,$G10)+IF(ISBLANK(P10),0,P10)))*5000+ IF(ISBLANK(Q10),0,MIN(4,Q10))*1000+ IF(OR(LEFT($E10)="n",LEFT($E10)="f"),10000,0)+ IF($X10="Incomplete",250,IF($X10="Missing",500,0)), AG10) ) -> 0 | AK10: =IF(ISBLANK($C10),"",IF(ISNUMBER($AG10),SUM(AH10:AJ10)+IF(OR(LEFT(V10)="y",LEFT(V10)="t",V10=1),-25,0),AG10)) -> 369.92 | AL10: =IF(ISBLANK($C10),"",IF(OR(AF10="NS",AF10="P",AF10="DQ"),AF10,IF(AF10="<-",AA10,AG10))) -> 1 | AM10: =IF(ISBLANK($C10),"",IF(OR(AF10="NS",AF10="P",AF10="DQ"),AF10,IF(AF10="<-",AE10,AK10))) -> 150.1 | AN10: =IF(ISBLANK($C10),"",IF(ISNUMBER($AM10),RANK(AM10,OFFSET(AM$9,0,0,$Z$2),1),AM10)) -> 14 | AO10: =IF(ISBLANK($C10),"",IF(ISNUMBER($AN10),IF($AF10="=",MIN(AB10,AH10),IF($AF10="<-",AB10,AH10)),$AN10)) -> 131.6 | AP10: =IF(ISBLANK($C10),"",IF(ISNUMBER($AN10),AN10+AO10/(MAX(AO$9:AO$108,1)*2),$AN10)) -> 14.047 | AQ10: =IF(ISBLANK($C10),"",IF(ISNUMBER($AN10),RANK(AP10,OFFSET(AP$9,0,0,$Z$2),1),$AN10)) -> 14 | AR10: =IF(ISBLANK($C10),"",IF(ISNUMBER($AN10),IF($AF10="=",MIN(AC10,AI10),IF($AF10="<-",AC10,AI10)),$AN10)) -> 18.5 | AS10: =IF(ISBLANK($C10),"",IF(ISNUMBER($AN10),AQ10+AR10/(MAX(AR$9:AR$108,1)*2),$AN10)) -> 14.30367695 | AT10: =IF(ISBLANK($C10),"",IF(ISNUMBER($AN10),RANK(AS10,OFFSET(AS$9,0,0,$Z$2),1),$AN10)) -> 14 | AU10: =IF(ISBLANK($C10),"",IF(ISNUMBER($AN10),IF($AF10="=",MIN(AH10,AN10),IF($AF10="<-",AH10,AN10)),$AN10)) -> 348.8 | AV10: =IF(ISBLANK($C10),"",IF(ISNUMBER($AN10),AT10+IF(ISNUMBER(AU10),AU10/ABS((MAX(MAX(AU$9:AU$108,1),-MIN(AU$9:AU$108,1)))*2),0.6),$AN10)) -> 14.28684211 | AW10: =IF(ROW(C10)-8>$Z$2,"", IF(ISBLANK($C10),"NS",IF(OR(ISNUMBER($AL10),ISNUMBER($AM10)),AM10,$AL10))) -> 150.1 | AX10: =IF(ROW(C10)-8>$Z$2,"",IF(ISBLANK($C10),"NS",AL10)) -> 1 | AY10: =IF(ROW(C10)-8>$Z$2,"",IF(ISBLANK($C10),"NS",IF(ISNUMBER(AS10),AN10-AZ10,AS10))) -> 0 | AZ10: =IF(ROW(C10)-8>$Z$2,"",IF(ISBLANK($C10),"NS",IF(ISNUMBER(AS10),RANK(AS10,OFFSET($AS$9,0,0,$Z$2),1),AS10))) -> 14 | BA10: =IF(ROW(C10)-8>$Z$2,"",IF(ISNUMBER(AZ10),AZ10,IF(AZ10="P",$Z$2,IF(AZ10="NS",$Z$2+1,IF(AZ10="DQ",$Z$2+2))))) -> 14 | BC10: =IF(ISNUMBER(AZ10),1,0) -> 1 | BD10: 2 | BE10: =IF(ISBLANK($C10),"",BA10+ROW($B10)/1000) -> 14.01 | BF10: =IF(ISBLANK($C10),"",RANK(BE10,OFFSET(BE$9,0,0,$Z$2),1)) -> 14 | BG10: =IF(ISBLANK($C10),"",$C10) -> Chippewa MS Blue | BH10: =IF(ISBLANK($C10),"",BA10) -> 14 | BI10: =AZ10 -> 14 | BJ10: =IF(BD10>BC$4,"",VLOOKUP(BD10,OFFSET(BF$9,0,0,$Z$2,4),4,FALSE)) -> 2 | BK10: =IF(BD10>BC$4,"",VLOOKUP(BD10,OFFSET(BF$9,0,0,$Z$2,4),2,FALSE)) -> Fowlerville Jr. HS
B11: 3 | C11: Clague MS Green | G11: 0 | H11: 0 | I11: 0 | J11: 29.3 | K11: 3.33 | L11: 3.26 | M11: 3.41 | N11: n | O11: n | P11: 0 | Q11: 0 | R11: 16.4 | S11: 3.25 | T11: 3.25 | U11: 3.15 | V11: y | W11: n | X11: Complete | Z11: 3 | AA11: 1 | AB11: 117.2 | AC11: 6.66 | AD11: 0 | AE11: 123.86 | AF11: -> | AG11: 1 | AH11: 65.6 | AI11: 6.5 | AJ11: 0 | AK11: 47.1 | AL11: 1 | AM11: 47.1 | AN11: 10 | AO11: 65.6 | AP11: 10.02342857 | AQ11: 10 | AR11: 6.5 | AS11: 10.10669731 | AT11: 10 | AU11: 10 | AV11: 10.00822368 | AW11: 47.1 | AX11: 1 | AY11: 0 | AZ11: 10 | BA11: 10 | BC11: 1 | BD11: 3 | BE11: 10.011 | BF11: 10 | BG11: Clague MS Green | BH11: 10 | BI11: 10 | BJ11: 3 | BK11: Boulan Park MS Purple
B12: 4 | C12: Clague MS Blue | G12: 0 | H12: 0 | I12: 0 | J12: 26.8 | K12: 3.99 | L12: 3.67 | M12: 3.92 | N12: n | O12: n | P12: 0 | Q12: 0 | R12: 13.3 | S12: 3.76 | T12: 3.88 | U12: 3.78 | V12: y | W12: n | X12: Complete | Z12: 4 | AA12: 1 | AB12: 107.2 | AC12: 7.84 | AD12: 0 | AE12: 115.04 | AF12: -> | AG12: 1 | AH12: 53.2 | AI12: 7.56 | AJ12: 0 | AK12: 35.76 | AL12: 1 | AM12: 35.76 | AN12: 7 | AO12: 53.2 | AP12: 7.019 | AQ12: 7 | AR12: 7.56 | AS12: 7.124097177 | AT12: 7 | AU12: 7 | AV12: 7.005756579 | AW12: 35.76 | AX12: 1 | AY12: 0 | AZ12: 7 | BA12: 7 | BC12: 1 | BD12: 4 | BE12: 7.012 | BF12: 7 | BG12: Clague MS Blue | BH12: 7 | BI12: 7 | BJ12: 4 | BK12: Meads Mill MS Maroon
B13: 5 | C13: Boulan Park MS Purple | G13: 0 | H13: 0 | I13: 0 | J13: 59.5 | K13: 2.68 | L13: 2.71 | M13: 2.67 | N13: n | O13: n | P13: 0 | Q13: 0 | R13: 9 | S13: 2.64 | T13: 2.65 | U13: 2.79 | V13: Y | W13: n | X13: Complete | Z13: 5 | AA13: 1 | AB13: 238 | AC13: 5.36 | AD13: 0 | AE13: 243.36 | AF13: -> | AG13: 1 | AH13: 36 | AI13: 5.3 | AJ13: 0 | AK13: 16.3 | AL13: 1 | AM13: 16.3 | AN13: 3 | AO13: 36 | AP13: 3.012857143 | AQ13: 3 | AR13: 5.3 | AS13: 3.086999343 | AT13: 3 | AU13: 3 | AV13: 3.002467105 | AW13: 16.3 | AX13: 1 | AY13: 0 | AZ13: 3 | BA13: 3 | BC13: 1 | BD13: 5 | BE13: 3.013 | BF13: 3 | BG13: Boulan Park MS Purple | BH13: 3 | BI13: 3 | BJ13: 5 | BK13: L’Anse Creuse MS South
B14: 6 | C14: Boulan Park MS White | G14: 0 | H14: 0 | I14: 0 | J14: 45 | K14: 3.17 | L14: 3.25 | M14: 3.4 | N14: n | O14: n | P14: 0 | Q14: 0 | R14: 21.5 | S14: 3.22 | T14: 3.22 | U14: 3.22 | V14: y | W14: n | X14: Complete | Z14: 6 | AA14: 1 | AB14: 180 | AC14: 6.5 | AD14: 0 | AE14: 186.5 | AF14: -> | AG14: 1 | AH14: 86 | AI14: 6.44 | AJ14: 0 | AK14: 67.44 | AL14: 1 | AM14: 67.44 | AN14: 12 | AO14: 86 | AP14: 12.03071429 | AQ14: 12 | AR14: 6.44 | AS14: 12.10571241 | AT14: 12 | AU14: 12 | AV14: 12.00986842 | AW14: 67.44 | AX14: 1 | AY14: 0 | AZ14: 12 | BA14: 12 | BC14: 1 | BD14: 6 | BE14: 12.014 | BF14: 12 | BG14: Boulan Park MS White | BH14: 12 | BI14: 12 | BJ14: 6 | BK14: Dansville MS Black
B15: 7 | C15: Boulan Park MS Red | G15: 0 | H15: 0 | I15: 0 | J15: 4 | K15: 3.7 | L15: 3.67 | M15: 3.65 | N15: y | O15: n | P15: 0 | Q15: 0 | R15: 13 | S15: 3.57 | T15: 3.58 | U15: 3.65 | V15: y | W15: n | X15: Complete | Z15: 7 | AA15: 1 | AB15: 16 | AC15: 7.34 | AD15: 0 | AE15: -1.66 | AF15: <- | AG15: 1 | AH15: 52 | AI15: 7.16 | AJ15: 0 | AK15: 34.16 | AL15: 1 | AM15: -1.66 | AN15: 1 | AO15: 16 | AP15: 1.005714286 | AQ15: 1 | AR15: 7.34 | AS15: 1.120485883 | AT15: 1 | AU15: 52 | AV15: 1.042763158 | AW15: -1.66 | AX15: 1 | AY15: 0 | AZ15: 1 | BA15: 1 | BC15: 1 | BD15: 7 | BE15: 1.015 | BF15: 1 | BG15: Boulan Park MS Red | BH15: 1 | BI15: 1 | BJ15: 7 | BK15: Clague MS Blue
B16: 8 | C16: Smith MS Gold | G16: 0 | H16: 0 | I16: 0 | J16: 14 | K16: 5.11 | L16: 5.31 | M16: 5.16 | N16: y | O16: n | P16: 0 | Q16: 0 | R16: 24.2 | S16: 4.63 | T16: 4.65 | U16: 4.82 | V16: y | W16: n | X16: Complete | Z16: 8 | AA16: 1 | AB16: 56 | AC16: 10.32 | AD16: 0 | AE16: 41.32 | AF16: <- | AG16: 1 | AH16: 96.8 | AI16: 9.3 | AJ16: 0 | AK16: 81.1 | AL16: 1 | AM16: 41.32 | AN16: 9 | AO16: 56 | AP16: 9.02 | AQ16: 9 | AR16: 10.32 | AS16: 9.169402495 | AT16: 9 | AU16: 96.8 | AV16: 9.079605263 | AW16: 41.32 | AX16: 1 | AY16: 0 | AZ16: 9 | BA16: 9 | BC16: 1 | BD16: 8 | BE16: 9.016 | BF16: 9 | BG16: Smith MS Gold | BH16: 9 | BI16: 9 | BJ16: 8 | BK16: Hillside MS Red
B17: 9 | C17: Smith MS White | Z17: 9 | AA17: NS | AB17: NS | AC17: NS | AD17: NS | AE17: NS | AF17: NS | AG17: NS | AH17: NS | AI17: NS | AJ17: NS | AK17: NS | AL17: NS | AM17: NS | AN17: NS | AO17: NS | AP17: NS | AQ17: NS | AR17: NS | AS17: NS | AT17: NS | AU17: NS | AV17: NS | AW17: NS | AX17: NS | AY17: NS | AZ17: NS | BA17: 42 | BC17: 0 | BD17: 9 | BE17: 42.017 | BF17: 27 | BG17: Smith MS White | BH17: 42 | BI17: NS | BJ17: 9 | BK17: Smith MS Gold
B18: 10 | C18: Dansville MS Black | G18: 0 | H18: 0 | I18: 0 | J18: 44.8 | K18: 4.43 | L18: 4.83 | M18: 5.04 | N18: y | O18: n | P18: 0 | Q18: 0 | R18: 12.3 | S18: 4.62 | T18: 5.29 | U18: 5.11 | V18: y | W18: n | X18: Complete | Z18: 10 | AA18: 1 | AB18: 179.2 | AC18: 9.66 | AD18: 0 | AE18: 163.86 | AF18: -> | AG18: 1 | AH18: 49.2 | AI18: 10.22 | AJ18: 0 | AK18: 34.42 | AL18: 1 | AM18: 34.42 | AN18: 6 | AO18: 49.2 | AP18: 6.017571429 | AQ18: 6 | AR18: 10.22 | AS18: 6.167760998 | AT18: 6 | AU18: 6 | AV18: 6.004934211 | AW18: 34.42 | AX18: 1 | AY18: 0 | AZ18: 6 | BA18: 6 | BC18: 1 | BD18: 10 | BE18: 6.018 | BF18: 6 | BG18: Dansville MS Black | BH18: 6 | BI18: 6 | BJ18: 10 | BK18: Clague MS Green
B19: 11 | C19: Dansville MS Gold | G19: 0 | H19: 0 | I19: 1 | J19: 350 | K19: 20.42 | L19: 20.75 | M19: 20.65 | N19: n | O19: n | P19: 0 | Q19: 1 | R19: 350 | S19: 15.23 | T19: 15.47 | U19: 13.89 | V19: n | W19: n | X19: Missing | Z19: 11 | AA19: 1 | AB19: 1400 | AC19: 41.3 | AD19: 1500 | AE19: 2941.3 | AF19: -> | AG19: 1 | AH19: 1400 | AI19: 30.46 | AJ19: 1500 | AK19: 2930.46 | AL19: 1 | AM19: 2930.46 | AN19: 24 | AO19: 1400 | AP19: 24.5 | AQ19: 24 | AR19: 30.46 | AS19: 24.5 | AT19: 24 | AU19: 24 | AV19: 24.01973684 | AW19: 2930.46 | AX19: 1 | AY19: 0 | AZ19: 24 | BA19: 24 | BC19: 1 | BD19: 11 | BE19: 24.019 | BF19: 24 | BG19: Dansville MS Gold | BH19: 24 | BI19: 24 | BJ19: 11 | BK19: Canton Charter Acad. White
B20: 12 | C20: Power MS | G20: 0 | H20: 0 | I20: 0 | J20: 68 | K20: 2.32 | L20: 2.41 | M20: 2.51 | N20: n | O20: n | P20: 0 | Q20: 0 | R20: 53.1 | S20: 2.38 | T20: 2.42 | U20: 2.33 | V20: n | W20: n | X20: Complete | Z20: 12 | AA20: 1 | AB20: 272 | AC20: 4.82 | AD20: 0 | AE20: 276.82 | AF20: -> | AG20: 1 | AH20: 212.4 | AI20: 4.76 | AJ20: 0 | AK20: 217.16 | AL20: 1 | AM20: 217.16 | AN20: 17 | AO20: 212.4 | AP20: 17.07585714 | AQ20: 17 | AR20: 4.76 | AS20: 17.07813526 | AT20: 17 | AU20: 17 | AV20: 17.01398026 | AW20: 217.16 | AX20: 1 | AY20: 0 | AZ20: 17 | BA20: 17 | BC20: 1 | BD20: 12 | BE20: 17.02 | BF20: 17 | BG20: Power MS | BH20: 17 | BI20: 17 | BJ20: 12 | BK20: Boulan Park MS White
B21: 13 | C21: Washington Woods MS | Z21: 13 | AA21: NS | AB21: NS | AC21: NS | AD21: NS | AE21: NS | AF21: NS | AG21: NS | AH21: NS | AI21: NS | AJ21: NS | AK21: NS | AL21: NS | AM21: NS | AN21: NS | AO21: NS | AP21: NS | AQ21: NS | AR21: NS | AS21: NS | AT21: NS | AU21: NS | AV21: NS | AW21: NS | AX21: NS | AY21: NS | AZ21: NS | BA21: 42 | BC21: 0 | BD21: 13 | BE21: 42.021 | BF21: 28 | BG21: Washington Woods MS | BH21: 42 | BI21: NS | BJ21: 13 | BK21: Canton Charter Acad. Blue
B22: 14 | C22: Hope MS | Z22: 14 | AA22: NS | AB22: NS | AC22: NS | AD22: NS | AE22: NS | AF22: NS | AG22: NS | AH22: NS | AI22: NS | AJ22: NS | AK22: NS | AL22: NS | AM22: NS | AN22: NS | AO22: NS | AP22: NS | AQ22: NS | AR22: NS | AS22: NS | AT22: NS | AU22: NS | AV22: NS | AW22: NS | AX22: NS | AY22: NS | AZ22: NS | BA22: 42 | BC22: 0 | BD22: 14 | BE22: 42.022 | BF22: 29 | BG22: Hope MS | BH22: 42 | BI22: NS | BJ22: 14 | BK22: Chippewa MS Blue
B23: 15 | C23: Holt Jr. HS Gold | Z23: 15 | AA23: NS | AB23: NS | AC23: NS | AD23: NS | AE23: NS | AF23: NS | AG23: NS | AH23: NS | AI23: NS | AJ23: NS | AK23: NS | AL23: NS | AM23: NS | AN23: NS | AO23: NS | AP23: NS | AQ23: NS | AR23: NS | AS23: NS | AT23: NS | AU23: NS | AV23: NS | AW23: NS | AX23: NS | AY23: NS | AZ23: NS | BA23: 42 | BC23: 0 | BD23: 15 | BE23: 42.023 | BF23: 30 | BG23: Holt Jr. HS Gold | BH23: 42 | BI23: NS | BJ23: 15 | BK23: Chippewa MS Maroon
B24: 16 | C24: Holt Jr. HS Brown | Z24: 16 | AA24: NS | AB24: NS | AC24: NS | AD24: NS | AE24: NS | AF24: NS | AG24: NS | AH24: NS | AI24: NS | AJ24: NS | AK24: NS | AL24: NS | AM24: NS | AN24: NS | AO24: NS | AP24: NS | AQ24: NS | AR24: NS | AS24: NS | AT24: NS | AU24: NS | AV24: NS | AW24: NS | AX24: NS | AY24: NS | AZ24: NS | BA24: 42 | BC24: 0 | BD24: 16 | BE24: 42.024 | BF24: 31 | BG24: Holt Jr. HS Brown | BH24: 42 | BI24: NS | BJ24: 16 | BK24: Liberty MS Blue
B25: 17 | C25: Kinawa MS Maroon | Z25: 17 | AA25: NS | AB25: NS | AC25: NS | AD25: NS | AE25: NS | AF25: NS | AG25: NS | AH25: NS | AI25: NS | AJ25: NS | AK25: NS | AL25: NS | AM25: NS | AN25: NS | AO25: NS | AP25: NS | AQ25: NS | AR25: NS | AS25: NS | AT25: NS | AU25: NS | AV25: NS | AW25: NS | AX25: NS | AY25: NS | AZ25: NS | BA25: 42 | BC25: 0 | BD25: 17 | BE25: 42.025 | BF25: 32 | BG25: Kinawa MS Maroon | BH25: 42 | BI25: NS | BJ25: 17 | BK25: Power MS
B26: 18 | C26: Kinawa MS White | Z26: 18 | AA26: NS | AB26: NS | AC26: NS | AD26: NS | AE26: NS | AF26: NS | AG26: NS | AH26: NS | AI26: NS | AJ26: NS | AK26: NS | AL26: NS | AM26: NS | AN26: NS | AO26: NS | AP26: NS | AQ26: NS | AR26: NS | AS26: NS | AT26: NS | AU26: NS | AV26: NS | AW26: NS | AX26: NS | AY26: NS | AZ26: NS | BA26: 42 | BC26: 0 | BD26: 18 | BE26: 42.026 | BF26: 33 | BG26: Kinawa MS White | BH26: 42 | BI26: NS | BJ26: 18 | BK26: Hillside MS Black
B27: 19 | C27: Liberty MS Blue | G27: 0 | H27: 0 | I27: 0 | J27: 190 | K27: 2.64 | L27: 2.27 | M27: 2.34 | N27: n | O27: n | P27: 0 | Q27: 0 | R27: 52.8 | S27: 2.46 | T27: 2.48 | U27: 2.59 | V27: n | W27: n | X27: Complete | Z27: 19 | AA27: 1 | AB27: 760 | AC27: 4.68 | AD27: 0 | AE27: 764.68 | AF27: -> | AG27: 1 | AH27: 211.2 | AI27: 4.96 | AJ27: 0 | AK27: 216.16 | AL27: 1 | AM27: 216.16 | AN27: 16 | AO27: 211.2 | AP27: 16.07542857 | AQ27: 16 | AR27: 4.96 | AS27: 16.08141825 | AT27: 16 | AU27: 16 | AV27: 16.01315789 | AW27: 216.16 | AX27: 1 | AY27: 0 | AZ27: 16 | BA27: 16 | BC27: 1 | BD27: 19 | BE27: 16.027 | BF27: 16 | BG27: Liberty MS Blue | BH27: 16 | BI27: 16 | BJ27: 19 | BK27: Scranton MS 2
B28: 20 | C28: Liberty MS Silver | G28: 0 | H28: 0 | I28: 0 | J28: 89.1 | K28: 5.15 | L28: 4.82 | M28: 5.07 | N28: n | O28: y | P28: 0 | Q28: 0 | R28: 126.4 | S28: 2.18 | T28: 1.95 | U28: 1.85 | V28: n | W28: n | X28: Complete | Z28: 20 | AA28: P | AB28: P | AC28: P | AD28: P | AE28: P | AF28: -> | AG28: 1 | AH28: 505.6 | AI28: 3.9 | AJ28: 0 | AK28: 509.5 | AL28: 1 | AM28: 509.5 | AN28: 22 | AO28: 505.6 | AP28: 22.18057143 | AQ28: 22 | AR28: 3.9 | AS28: 22.06401838 | AT28: 22 | AU28: 22 | AV28: 22.01809211 | AW28: 509.5 | AX28: 1 | AY28: 0 | AZ28: 22 | BA28: 22 | BC28: 1 | BD28: 20 | BE28: 22.028 | BF28: 22 | BG28: Liberty MS Silver | BH28: 22 | BI28: 22 | BJ28: 20 | BK28: Washtenaw Int’l Academy
B29: 21 | C29: Ionia MS 1 | Z29: 21 | AA29: NS | AB29: NS | AC29: NS | AD29: NS | AE29: NS | AF29: NS | AG29: NS | AH29: NS | AI29: NS | AJ29: NS | AK29: NS | AL29: NS | AM29: NS | AN29: NS | AO29: NS | AP29: NS | AQ29: NS | AR29: NS | AS29: NS | AT29: NS | AU29: NS | AV29: NS | AW29: NS | AX29: NS | AY29: NS | AZ29: NS | BA29: 42 | BC29: 0 | BD29: 21 | BE29: 42.029 | BF29: 34 | BG29: Ionia MS 1 | BH29: 42 | BI29: NS | BJ29: 21 | BK29: Meads Mill MS Gold
B30: 22 | C30: Ionia MS 2 | Z30: 22 | AA30: NS | AB30: NS | AC30: NS | AD30: NS | AE30: NS | AF30: NS | AG30: NS | AH30: NS | AI30: NS | AJ30: NS | AK30: NS | AL30: NS | AM30: NS | AN30: NS | AO30: NS | AP30: NS | AQ30: NS | AR30: NS | AS30: NS | AT30: NS | AU30: NS | AV30: NS | AW30: NS | AX30: NS | AY30: NS | AZ30: NS | BA30: 42 | BC30: 0 | BD30: 22 | BE30: 42.03 | BF30: 35 | BG30: Ionia MS 2 | BH30: 42 | BI30: NS | BJ30: 22 | BK30: Liberty MS Silver
B31: 23 | C31: Haslett MS Gold | Z31: 23 | AA31: NS | AB31: NS | AC31: NS | AD31: NS | AE31: NS | AF31: NS | AG31: NS | AH31: NS | AI31: NS | AJ31: NS | AK31: NS | AL31: NS | AM31: NS | AN31: NS | AO31: NS | AP31: NS | AQ31: NS | AR31: NS | AS31: NS | AT31: NS | AU31: NS | AV31: NS | AW31: NS | AX31: NS | AY31: NS | AZ31: NS | BA31: 42 | BC31: 0 | BD31: 23 | BE31: 42.031 | BF31: 36 | BG31: Haslett MS Gold | BH31: 42 | BI31: NS | BJ31: 23 | BK31: McCord Jr HS Red
B32: 24 | C32: Haslett MS Blue | I32: 2 | O32: y | Q32: 2 | W32: y | X32: Missing | Z32: 24 | AA32: P | AB32: P | AC32: P | AD32: P | AE32: P | AF32: P | AG32: P | AH32: P | AI32: P | AJ32: P | AK32: P | AL32: P | AM32: P | AN32: P | AO32: P | AP32: P | AQ32: P | AR32: P | AS32: P | AT32: P | AU32: P | AV32: P | AW32: P | AX32: P | AY32: P | AZ32: P | BA32: 41 | BC32: 0 | BD32: 24 | BE32: 41.032 | BF32: 25 | BG32: Haslett MS Blue | BH32: 41 | BI32: P | BJ32: 24 | BK32: Dansville MS Gold
B33: 25 | C33: McCord Jr HS Red | G33: 0 | H33: 0 | I33: 1 | J33: 350 | K33: 3.76 | L33: 6.15 | M33: 5.3 | N33: n | O33: n | P33: 0 | Q33: 0 | R33: 169.2 | S33: 2.67 | T33: 1.27 | U33: 2.46 | V33: n | W33: n | X33: Complete | Z33: 25 | AA33: 1 | AB33: 1400 | AC33: 10.6 | AD33: 1000 | AE33: 2410.6 | AF33: -> | AG33: 1 | AH33: 676.8 | AI33: 4.92 | AJ33: 0 | AK33: 681.72 | AL33: 1 | AM33: 681.72 | AN33: 23 | AO33: 676.8 | AP33: 23.24171429 | AQ33: 23 | AR33: 4.92 | AS33: 23.08076165 | AT33: 23 | AU33: 23 | AV33: 23.01891447 | AW33: 681.72 | AX33: 1 | AY33: 0 | AZ33: 23 | BA33: 23 | BC33: 1 | BD33: 25 | BE33: 23.033 | BF33: 23 | BG33: McCord Jr HS Red | BH33: 23 | BI33: 23
B34: 26 | C34: McCord Jr HS Black | G34: 0 | H34: 0 | I34: 0 | O34: y | W34: y | X34: Incomplete | Z34: 26 | AA34: P | AB34: P | AC34: P | AD34: P | AE34: P | AF34: P | AG34: P | AH34: P | AI34: P | AJ34: P | AK34: P | AL34: P | AM34: P | AN34: P | AO34: P | AP34: P | AQ34: P | AR34: P | AS34: P | AT34: P | AU34: P | AV34: P | AW34: P | AX34: P | AY34: P | AZ34: P | BA34: 41 | BC34: 0 | BD34: 26 | BE34: 41.034 | BF34: 26 | BG34: McCord Jr HS Black | BH34: 41 | BI34: P
B35: 27 | C35: L’Anse Creuse MS South | G35: 0 | H35: 0 | I35: 0 | J35: 9.7 | K35: 6.66 | L35: 5.58 | M35: 5.83 | N35: y | O35: n | P35: 0 | Q35: 0 | R35: 50.5 | S35: 4.27 | T35: 4.41 | U35: 4.38 | V35: n | W35: n | X35: Complete | Z35: 27 | AA35: 1 | AB35: 38.8 | AC35: 11.66 | AD35: 0 | AE35: 25.46 | AF35: <- | AG35: 1 | AH35: 202 | AI35: 8.76 | AJ35: 0 | AK35: 210.76 | AL35: 1 | AM35: 25.46 | AN35: 5 | AO35: 38.8 | AP35: 5.013857143 | AQ35: 5 | AR35: 11.66 | AS35: 5.191398555 | AT35: 5 | AU35: 202 | AV35: 5.166118421 | AW35: 25.46 | AX35: 1 | AY35: 0 | AZ35: 5 | BA35: 5 | BC35: 1 | BD35: 27 | BE35: 5.035 | BF35: 5 | BG35: L’Anse Creuse MS South | BH35: 5 | BI35: 5
B36: 28 | C36: Warner MS | Z36: 28 | AA36: NS | AB36: NS | AC36: NS | AD36: NS | AE36: NS | AF36: NS | AG36: NS | AH36: NS | AI36: NS | AJ36: NS | AK36: NS | AL36: NS | AM36: NS | AN36: NS | AO36: NS | AP36: NS | AQ36: NS | AR36: NS | AS36: NS | AT36: NS | AU36: NS | AV36: NS | AW36: NS | AX36: NS | AY36: NS | AZ36: NS | BA36: 42 | BC36: 0 | BD36: 28 | BE36: 42.036 | BF36: 37 | BG36: Warner MS | BH36: 42 | BI36: NS
B37: 29 | C37: Novi Meadows Elementary | Z37: 29 | AA37: NS | AB37: NS | AC37: NS | AD37: NS | AE37: NS | AF37: NS | AG37: NS | AH37: NS | AI37: NS | AJ37: NS | AK37: NS | AL37: NS | AM37: NS | AN37: NS | AO37: NS | AP37: NS | AQ37: NS | AR37: NS | AS37: NS | AT37: NS | AU37: NS | AV37: NS | AW37: NS | AX37: NS | AY37: NS | AZ37: NS | BA37: 42 | BC37: 0 | BD37: 29 | BE37: 42.037 | BF37: 38 | BG37: Novi Meadows Elementary | BH37: 42 | BI37: NS
B38: 30 | C38: Lansing Homeschool Scholars | Z38: 30 | AA38: NS | AB38: NS | AC38: NS | AD38: NS | AE38: NS | AF38: NS | AG38: NS | AH38: NS | AI38: NS | AJ38: NS | AK38: NS | AL38: NS | AM38: NS | AN38: NS | AO38: NS | AP38: NS | AQ38: NS | AR38: NS | AS38: NS | AT38: NS | AU38: NS | AV38: NS | AW38: NS | AX38: NS | AY38: NS | AZ38: NS | BA38: 42 | BC38: 0 | BD38: 30 | BE38: 42.038 | BF38: 39 | BG38: Lansing Homeschool Scholars | BH38: 42 | BI38: NS
B39: 31 | C39: Meads Mill MS Gold | G39: 0 | H39: 0 | I39: 0 | J39: 88.7 | K39: 3.32 | L39: 3.58 | M39: 3.4 | N39: n | O39: n | P39: 0 | Q39: 1 | W39: y | X39: Complete | Z39: 31 | AA39: 1 | AB39: 354.8 | AC39: 6.8 | AD39: 0 | AE39: 361.6 | AF39: <- | AG39: P | AH39: P | AI39: P | AJ39: P | AK39: P | AL39: 1 | AM39: 361.6 | AN39: 21 | AO39: 354.8 | AP39: 21.12671429 | AQ39: 21 | AR39: 6.8 | AS39: 21.1116218 | AT39: 21 | AU39: P | AV39: 21.6 | AW39: 361.6 | AX39: 1 | AY39: 0 | AZ39: 21 | BA39: 21 | BC39: 1 | BD39: 31 | BE39: 21.039 | BF39: 21 | BG39: Meads Mill MS Gold | BH39: 21 | BI39: 21
B40: 32 | C40: Meads Mill MS Maroon | G40: 0 | H40: 0 | I40: 0 | J40: 58.5 | K40: 3.42 | L40: 3.58 | M40: 3.32 | N40: n | O40: n | P40: 0 | Q40: 0 | R40: 10.7 | S40: 3.62 | T40: 3.65 | U40: 3.73 | V40: y | W40: n | X40: Complete | Z40: 32 | AA40: 1 | AB40: 234 | AC40: 6.84 | AD40: 0 | AE40: 240.84 | AF40: -> | AG40: 1 | AH40: 42.8 | AI40: 7.3 | AJ40: 0 | AK40: 25.1 | AL40: 1 | AM40: 25.1 | AN40: 4 | AO40: 42.8 | AP40: 4.015285714 | AQ40: 4 | AR40: 7.3 | AS40: 4.119829284 | AT40: 4 | AU40: 4 | AV40: 4.003289474 | AW40: 25.1 | AX40: 1 | AY40: 0 | AZ40: 4 | BA40: 4 | BC40: 1 | BD40: 32 | BE40: 4.04 | BF40: 4 | BG40: Meads Mill MS Maroon | BH40: 4 | BI40: 4
B41: 33 | C41: St. Martha | Z41: 33 | AA41: NS | AB41: NS | AC41: NS | AD41: NS | AE41: NS | AF41: NS | AG41: NS | AH41: NS | AI41: NS | AJ41: NS | AK41: NS | AL41: NS | AM41: NS | AN41: NS | AO41: NS | AP41: NS | AQ41: NS | AR41: NS | AS41: NS | AT41: NS | AU41: NS | AV41: NS | AW41: NS | AX41: NS | AY41: NS | AZ41: NS | BA41: 42 | BC41: 0 | BD41: 33 | BE41: 42.041 | BF41: 40 | BG41: St. Martha | BH41: 42 | BI41: NS
B42: 34 | C42: Canton Charter Acad. Blue | G42: 0 | H42: 0 | I42: 0 | J42: 32.4 | K42: 3.11 | L42: 3.18 | M42: 3.37 | N42: n | O42: n | P42: 0 | Q42: 0 | R42: 27.2 | S42: 3.31 | T42: 3.32 | U42: 3.95 | V42: n | W42: n | X42: Complete | Z42: 34 | AA42: 1 | AB42: 129.6 | AC42: 6.36 | AD42: 0 | AE42: 135.96 | AF42: -> | AG42: 1 | AH42: 108.8 | AI42: 6.64 | AJ42: 0 | AK42: 115.44 | AL42: 1 | AM42: 115.44 | AN42: 13 | AO42: 108.8 | AP42: 13.03885714 | AQ42: 13 | AR42: 6.64 | AS42: 13.1089954 | AT42: 13 | AU42: 13 | AV42: 13.01069079 | AW42: 115.44 | AX42: 1 | AY42: 0 | AZ42: 13 | BA42: 13 | BC42: 1 | BD42: 34 | BE42: 13.042 | BF42: 13 | BG42: Canton Charter Acad. Blue | BH42: 13 | BI42: 13
B43: 35 | C43: Canton Charter Acad. White | G43: 0 | H43: 0 | I43: 0 | J43: 45.5 | K43: 3.69 | L43: 3.71 | M43: 3.72 | N43: n | O43: n | P43: 0 | Q43: 0 | R43: 14 | S43: 3.89 | T43: 3.58 | U43: 3.69 | V43: n | W43: n | X43: Complete | Z43: 35 | AA43: 1 | AB43: 182 | AC43: 7.42 | AD43: 0 | AE43: 189.42 | AF43: -> | AG43: 1 | AH43: 56 | AI43: 7.38 | AJ43: 0 | AK43: 63.38 | AL43: 1 | AM43: 63.38 | AN43: 11 | AO43: 56 | AP43: 11.02 | AQ43: 11 | AR43: 7.38 | AS43: 11.12114248 | AT43: 11 | AU43: 11 | AV43: 11.00904605 | AW43: 63.38 | AX43: 1 | AY43: 0 | AZ43: 11 | BA43: 11 | BC43: 1 | BD43: 35 | BE43: 11.043 | BF43: 11 | BG43: Canton Charter Acad. White | BH43: 11 | BI43: 11
B44: 36 | C44: Washtenaw Int’l Academy | G44: 0 | H44: 0 | I44: 0 | J44: 76.3 | K44: 6.1 | L44: 4.79 | M44: 4.79 | N44: n | O44: n | P44: 0 | Q44: 0 | R44: 152 | S44: 4.59 | T44: 4.63 | U44: 4.78 | V44: n | W44: n | X44: Complete | Z44: 36 | AA44: 1 | AB44: 305.2 | AC44: 9.58 | AD44: 0 | AE44: 314.78 | AF44: <- | AG44: 1 | AH44: 608 | AI44: 9.26 | AJ44: 0 | AK44: 617.26 | AL44: 1 | AM44: 314.78 | AN44: 20 | AO44: 305.2 | AP44: 20.109 | AQ44: 20 | AR44: 9.58 | AS44: 20.15725542 | AT44: 20 | AU44: 608 | AV44: 20.5 | AW44: 314.78 | AX44: 1 | AY44: 0 | AZ44: 20 | BA44: 20 | BC44: 1 | BD44: 36 | BE44: 20.044 | BF44: 20 | BG44: Washtenaw Int’l Academy | BH44: 20 | BI44: 20
B45: 37 | C45: Hillside MS Red | G45: 0 | H45: 0 | I45: 0 | J45: 17 | K45: 2.66 | L45: 2.76 | M45: 2.77 | N45: y | O45: n | P45: 0 | Q45: 0 | R45: 14 | S45: 2.58 | T45: 2.66 | U45: 3.05 | V45: y | W45: n | X45: Complete | Z45: 37 | AA45: 1 | AB45: 68 | AC45: 5.52 | AD45: 0 | AE45: 48.52 | AF45: -> | AG45: 1 | AH45: 56 | AI45: 5.32 | AJ45: 0 | AK45: 36.32 | AL45: 1 | AM45: 36.32 | AN45: 8 | AO45: 56 | AP45: 8.02 | AQ45: 8 | AR45: 5.32 | AS45: 8.087327643 | AT45: 8 | AU45: 8 | AV45: 8.006578947 | AW45: 36.32 | AX45: 1 | AY45: 0 | AZ45: 8 | BA45: 8 | BC45: 1 | BD45: 37 | BE45: 8.045 | BF45: 8 | BG45: Hillside MS Red | BH45: 8 | BI45: 8
B46: 38 | C46: Hillside MS Black | G46: 0 | H46: 0 | I46: 0 | J46: 105.1 | K46: 9.42 | L46: 9.59 | M46: 9.54 | N46: n | O46: n | P46: 0 | Q46: 0 | R46: 63.3 | S46: 9.27 | T46: 9.42 | U46: 9.51 | V46: n | W46: n | X46: Complete | Z46: 38 | AA46: 1 | AB46: 420.4 | AC46: 19.08 | AD46: 0 | AE46: 439.48 | AF46: -> | AG46: 1 | AH46: 253.2 | AI46: 18.84 | AJ46: 0 | AK46: 272.04 | AL46: 1 | AM46: 272.04 | AN46: 18 | AO46: 253.2 | AP46: 18.09042857 | AQ46: 18 | AR46: 18.84 | AS46: 18.30925804 | AT46: 18 | AU46: 18 | AV46: 18.01480263 | AW46: 272.04 | AX46: 1 | AY46: 0 | AZ46: 18 | BA46: 18 | BC46: 1 | BD46: 38 | BE46: 18.046 | BF46: 18 | BG46: Hillside MS Black | BH46: 18 | BI46: 18
B47: 39 | C47: Scranton MS 1 | Z47: 39 | AA47: NS | AB47: NS | AC47: NS | AD47: NS | AE47: NS | AF47: NS | AG47: NS | AH47: NS | AI47: NS | AJ47: NS | AK47: NS | AL47: NS | AM47: NS | AN47: NS | AO47: NS | AP47: NS | AQ47: NS | AR47: NS | AS47: NS | AT47: NS | AU47: NS | AV47: NS | AW47: NS | AX47: NS | AY47: NS | AZ47: NS | BA47: 42 | BC47: 0 | BD47: 39 | BE47: 42.047 | BF47: 41 | BG47: Scranton MS 1 | BH47: 42 | BI47: NS
B48: 40 | C48: Scranton MS 2 | G48: 0 | H48: 0 | I48: 0 | J48: 80.4 | K48: 10.01 | L48: 11.06 | M48: 10.86 | N48: n | O48: n | P48: 0 | Q48: 0 | R48: 67.8 | S48: 11.19 | T48: 11.2 | U48: 11.48 | V48: n | W48: n | X48: Complete | Z48: 40 | AA48: 1 | AB48: 321.6 | AC48: 21.72 | AD48: 0 | AE48: 343.32 | AF48: -> | AG48: 1 | AH48: 271.2 | AI48: 22.4 | AJ48: 0 | AK48: 293.6 | AL48: 1 | AM48: 293.6 | AN48: 19 | AO48: 271.2 | AP48: 19.09685714 | AQ48: 19 | AR48: 22.4 | AS48: 19.36769534 | AT48: 19 | AU48: 19 | AV48: 19.015625 | AW48: 293.6 | AX48: 1 | AY48: 0 | AZ48: 19 | BA48: 19 | BC48: 1 | BD48: 40 | BE48: 19.048 | BF48: 19 | BG48: Scranton MS 2 | BH48: 19 | BI48: 19
B49: 41 | C49: Fowlerville Jr. HS | G49: 0 | H49: 0 | I49: 0 | J49: 75 | K49: 6.74 | L49: 6.82 | M49: 6.86 | N49: n | O49: n | P49: 0 | Q49: 0 | R49: 7 | S49: 6.34 | T49: 6.5 | U49: 6.38 | V49: y | W49: n | X49: Complete | Z49: 41 | AA49: 1 | AB49: 300 | AC49: 13.64 | AD49: 0 | AE49: 313.64 | AF49: -> | AG49: 1 | AH49: 28 | AI49: 12.76 | AJ49: 0 | AK49: 15.76 | AL49: 1 | AM49: 15.76 | AN49: 2 | AO49: 28 | AP49: 2.01 | AQ49: 2 | AR49: 12.76 | AS49: 2.209455023 | AT49: 2 | AU49: 2 | AV49: 2.001644737 | AW49: 15.76 | AX49: 1 | AY49: 0 | AZ49: 2 | BA49: 2 | BC49: 1 | BD49: 41 | BE49: 2.049 | BF49: 2 | BG49: Fowlerville Jr. HS | BH49: 2 | BI49: 2
B50: 42 | BC50: 0 | BD50: 42
B51: 43 | BC51: 0 | BD51: 43
B52: 44 | BC52: 0 | BD52: 44
B53: 45 | BC53: 0 | BD53: 45
B54: 46 | BC54: 0 | BD54: 46
B55: 47 | BC55: 0 | BD55: 47
B56: 48 | BC56: 0 | BD56: 48
B57: 49 | BC57: 0 | BD57: 49
B58: 50 | BC58: 0 | BD58: 50
B59: 51 | BC59: 0 | BD59: 51
B60: 52 | BC60: 0 | BD60: 52
B61: 53 | BC61: 0 | BD61: 53
B62: 54 | BC62: 0 | BD62: 54
B63: 55 | BC63: 0 | BD63: 55
B64: 56 | BC64: 0 | BD64: 56
B65: 57 | BC65: 0 | BD65: 57
B66: 58 | BC66: 0 | BD66: 58
B67: 59 | BC67: 0 | BD67: 59
B68: 60 | BC68: 0 | BD68: 60
B69: 61 | BC69: 0 | BD69: 61
B70: 62 | BC70: 0 | BD70: 62
B71: 63 | BC71: 0 | BD71: 63
B72: 64 | BC72: 0 | BD72: 64
B73: 65 | BC73: 0 | BD73: 65
B74: 66 | Z74: =IF(ISBLANK(C74),"",ROW(C74)-8) ->  | AA74: =IF(ISBLANK($C74),"", IF(OR(LEFT($Y74)="y",LEFT($Y74)="t",$Y74=1), "DQ", IF(AND(ISBLANK($K74), ISBLANK($L74), ISBLANK($M74), ISBLANK($J74), ISBLANK($S74), ISBLANK($T74), ISBLANK($U74), ISBLANK($R74),NOT(OR(LEFT($O74)="y",LEFT($O74)="t",$O74=1, LEFT($W74)="y",LEFT($W74)="t",$W74=1))),"NS", IF(OR(AND(ISBLANK(K74), ISBLANK(L74), ISBLANK(M74)), ISBLANK(J74),LEFT(O74)="y",LEFT($O74)="t",$O74=1,LEFT(F74)="n",LEFT(F74)="f"),"P", 1 ) ) ) ) ->  | AB74: =IF(ISBLANK($C74),"",IF(ISNUMBER(AA74),ROUND(J74,1)*4,AA74)) ->  | AC74: =IF(ISBLANK($C74),"",IF(ISNUMBER(AA74), 2*ROUND(MEDIAN(K74:M74),2),AA74)) ->  | AD74: =IF(ISBLANK($C74),"", IF(ISNUMBER(AA74), MIN(3,(IF(ISBLANK($G74),0,$G74)+IF(ISBLANK(H74),0,H74)))*5000+ IF(ISBLANK(I74),0,MIN(4,I74))*1000+ IF(OR(LEFT($E74)="n",LEFT($E74)="f"),10000,0)+ IF($X74="Incomplete",250,IF($X74="Missing",500,0)), AA74) ) ->  | AE74: =IF(ISBLANK($C74),"",IF(ISNUMBER(AA74),SUM(AB74:AD74)+IF(OR(LEFT(N74)="y",LEFT(N74)="t",N74=1),-25,0),AA74)) ->  | AF74: =IF(ISBLANK($C74),"", IF(AND(ISNUMBER(AA74),ISNUMBER(AG74)), IF(AE74=AK74,"=",IF(AE74>AK74,"->","<-")), IF(OR(AA74="DQ",AA74="NS"), IF(AA74="DQ","DQ","NS"), IF(OR(AND(AA74="P",AG74="P"),AND(AA74="P",AG74="NS"),AND(AA74="NS",AG74="P")),"P",IF(AA74="P", "->","<-")) ) ) ) ->  | AG74: =IF(ISBLANK($C74),"", IF(OR(LEFT($Y74)="y",LEFT($Y74)="t",$Y74=1), "DQ", IF(AND(ISBLANK($K74), ISBLANK($L74), ISBLANK($M74), ISBLANK($J74), ISBLANK($S74), ISBLANK($T74), ISBLANK($U74), ISBLANK($R74),NOT(OR(LEFT($O74)="y",LEFT($O74)="t",$O74=1, LEFT($W74)="y",LEFT($W74)="t",$W74=1))),"NS", IF(OR(AND(ISBLANK(S74), ISBLANK(T74), ISBLANK(U74)), ISBLANK(R74),LEFT(W74)="y",LEFT($W74)="t",$W74=1,LEFT(F74)="n",LEFT(F74)="f"),"P", 1 ) ) ) ) ->  | AH74: =IF(ISBLANK($C74),"",IF(ISNUMBER(AG74),ROUND(R74,1)*4,AG74)) ->  | AI74: =IF(ISBLANK($C74),"",IF(ISNUMBER(AG74), 2*ROUND(MEDIAN(S74:U74),2),AG74)) ->  | AJ74: =IF(ISBLANK($C74),"", IF(ISNUMBER(AG74), MIN(3,(IF(ISBLANK($G74),0,$G74)+IF(ISBLANK(P74),0,P74)))*5000+ IF(ISBLANK(Q74),0,MIN(4,Q74))*1000+ IF(OR(LEFT($E74)="n",LEFT($E74)="f"),10000,0)+ IF($X74="Incomplete",250,IF($X74="Missing",500,0)), AG74) ) ->  | AK74: =IF(ISBLANK($C74),"",IF(ISNUMBER($AG74),SUM(AH74:AJ74)+IF(OR(LEFT(V74)="y",LEFT(V74)="t",V74=1),-25,0),AG74)) ->  | AL74: =IF(ISBLANK($C74),"",IF(OR(AF74="NS",AF74="P",AF74="DQ"),AF74,IF(AF74="<-",AA74,AG74))) ->  | AM74: =IF(ISBLANK($C74),"",IF(OR(AF74="NS",AF74="P",AF74="DQ"),AF74,IF(AF74="<-",AE74,AK74))) ->  | AN74: =IF(ISBLANK($C74),"",IF(ISNUMBER($AM74),RANK(AM74,OFFSET(AM$9,0,0,$Z$2),1),AM74)) ->  | AO74: =IF(ISBLANK($C74),"",IF(ISNUMBER($AN74),IF($AF74="=",MIN(AB74,AH74),IF($AF74="<-",AB74,AH74)),$AN74)) ->  | AP74: =IF(ISBLANK($C74),"",IF(ISNUMBER($AN74),AN74+AO74/(MAX(AO$9:AO$108,1)*2),$AN74)) ->  | AQ74: =IF(ISBLANK($C74),"",IF(ISNUMBER($AN74),RANK(AP74,OFFSET(AP$9,0,0,$Z$2),1),$AN74)) ->  | AR74: =IF(ISBLANK($C74),"",IF(ISNUMBER($AN74),IF($AF74="=",MIN(AC74,AI74),IF($AF74="<-",AC74,AI74)),$AN74)) ->  | AS74: =IF(ISBLANK($C74),"",IF(ISNUMBER($AN74),AQ74+AR74/(MAX(AR$9:AR$108,1)*2),$AN74)) ->  | AT74: =IF(ISBLANK($C74),"",IF(ISNUMBER($AN74),RANK(AS74,OFFSET(AS$9,0,0,$Z$2),1),$AN74)) ->  | AU74: =IF(ISBLANK($C74),"",IF(ISNUMBER($AN74),IF($AF74="=",MIN(AH74,AN74),IF($AF74="<-",AH74,AN74)),$AN74)) ->  | AV74: =IF(ISBLANK($C74),"",IF(ISNUMBER($AN74),AT74+IF(ISNUMBER(AU74),AU74/ABS((MAX(MAX(AU$9:AU$108,1),-MIN(AU$9:AU$108,1)))*2),0.6),$AN74)) ->  | AW74: =IF(ROW(C74)-8>$Z$2,"", IF(ISBLANK($C74),"NS",IF(OR(ISNUMBER($AL74),ISNUMBER($AM74)),AM74,$AL74))) ->  | AX74: =IF(ROW(C74)-8>$Z$2,"",IF(ISBLANK($C74),"NS",AL74)) ->  | AY74: =IF(ROW(C74)-8>$Z$2,"",IF(ISBLANK($C74),"NS",IF(ISNUMBER(AS74),AN74-AZ74,AS74))) ->  | AZ74: =IF(ROW(C74)-8>$Z$2,"",IF(ISBLANK($C74),"NS",IF(ISNUMBER(AS74),RANK(AS74,OFFSET($AS$9,0,0,$Z$2),1),AS74))) ->  | BA74: =IF(ROW(C74)-8>$Z$2,"",IF(ISNUMBER(AZ74),AZ74,IF(AZ74="P",$Z$2,IF(AZ74="NS",$Z$2+1,IF(AZ74="DQ",$Z$2+2))))) ->  | BC74: =IF(ISNUMBER(AZ74),1,0) -> 0 | BD74: 66 | BE74: =IF(ISBLANK($C74),"",BA74+ROW($B74)/1000) ->  | BF74: =IF(ISBLANK($C74),"",RANK(BE74,OFFSET(BE$9,0,0,$Z$2),1)) ->  | BG74: =IF(ISBLANK($C74),"",$C74) ->  | BH74: =IF(ISBLANK($C74),"",BA74) ->  | BI74: =AZ74 ->  | BJ74: =IF(BD74>BC$4,"",VLOOKUP(BD74,OFFSET(BF$9,0,0,$Z$2,4),4,FALSE)) ->  | BK74: =IF(BD74>BC$4,"",VLOOKUP(BD74,OFFSET(BF$9,0,0,$Z$2,4),2,FALSE)) -> 
B75: 67 | BC75: 0 | BD75: 67
B76: 68 | BC76: 0 | BD76: 68
B77: 69 | BC77: 0 | BD77: 69
B78: 70 | BC78: 0 | BD78: 70
B79: 71 | BC79: 0 | BD79: 71
B80: 72 | BC80: 0 | BD80: 72
B81: 73 | BC81: 0 | BD81: 73
B82: 74 | BC82: 0 | BD82: 74
B83: 75 | BC83: 0 | BD83: 75
B84: 76 | BC84: 0 | BD84: 76
B85: 77 | BC85: 0 | BD85: 77
B86: 78 | BC86: 0 | BD86: 78
B87: 79 | BC87: 0 | BD87: 79
B88: 80 | BC88: 0 | BD88: 80
B89: 81 | BC89: 0 | BD89: 81
B90: 82 | BC90: 0 | BD90: 82
B91: 83 | BC91: 0 | BD91: 83
B92: 84 | BC92: 0 | BD92: 84
B93: 85 | BC93: 0 | BD93: 85
B94: 86 | BC94: 0 | BD94: 86
B95: 87 | BC95: 0 | BD95: 87
B96: 88 | BC96: 0 | BD96: 88
B97: 89 | BC97: 0 | BD97: 89
B98: 90 | BC98: 0 | BD98: 90
B99: 91 | BC99: 0 | BD99: 91
B100: 92 | BC100: 0 | BD100: 92
B101: 93 | BC101: 0 | BD101: 93
B102: 94 | BC102: 0 | BD102: 94
B103: 95 | BC103: 0 | BD103: 95
B104: 96 | BC104: 0 | BD104: 96
B105: 97 | BC105: 0 | BD105: 97
B106: 98 | BC106: 0 | BD106: 98
B107: 99 | BC107: 0 | BD107: 99
B108: 100 | BC108: 0 | BD108: 100
BK110: Direct all questions to Peter Hung (scoresheets@soinc.org).
